bitfinex-derivatives/quotes_BTCF0:USTF0_20250108
["timestamp","ask_amount","ask_price","bid_price","bid_amount"]
[1736310503551,0.001,96474.0,96472.0,0.051835]
[1736310503857,0.501,96474.0,96472.0,0.051835]
[1736310504057,0.001,96474.0,96472.0,0.051835]
[1736310504357,0.501,96474.0,96472.0,0.051835]
[1736310504659,0.001,96474.0,96472.0,0.051835]
[1736310505058,0.501,96474.0,96472.0,0.051835]
[1736310505258,0.001,96474.0,96472.0,0.051835]
[1736310507955,0.3618,96474.0,96472.0,0.051835]
[1736310508655,0.8618,96474.0,96472.0,0.051835]
[1736310508855,0.3618,96474.0,96472.0,0.051835]
[1736310509955,0.8618,96474.0,96472.0,0.051835]
[1736310513966,0.8618,96474.0,96465.0,0.051839]
[1736310515265,0.3608,96466.0,96464.0,0.02814444]
[1736310515564,0.3378,96465.0,96458.0,0.001555]
[1736310515765,0.3608,96464.0,96458.0,0.001555]
[1736310516566,0.8608,96464.0,96458.0,0.001555]
[1736310517567,0.3608,96464.0,96458.0,0.001555]
[1736310517975,0.8608,96464.0,96458.0,0.001555]
[1736310518973,0.8608,96464.0,96458.0,0.006555]
[1736310519970,0.8608,96464.0,96458.0,0.058398]
[1736310520366,0.8608,96464.0,96458.0,0.053398]
[1736310520568,0.8608,96464.0,96458.0,0.057398]
[1736310521475,0.8608,96464.0,96458.0,0.08507142]
[1736310522172,0.8608,96464.0,96458.0,0.08107142]
[1736310523171,0.8618,96464.0,96463.0,0.051841]
[1736310523675,0.98954895,96464.0,96463.0,0.051841]
[1736310524077,0.98954895,96464.0,96459.0,0.08482259]
[1736310524078,0.99054895,96464.0,96459.0,0.08482259]
[1736310524469,0.8628,96464.0,96459.0,0.08482259]
[1736310524773,0.8628,96464.0,96463.0,0.051841]
[1736310525374,0.8618,96464.0,96463.0,0.051841]
[1736310525969,0.501,96464.0,96463.0,0.051841]
[1736310526269,0.5,96464.0,96463.0,0.052841]
[1736310526673,0.40891634,96469.0,96463.0,0.056841]
[1736310526873,0.37891634,96469.0,96468.0,0.412638]
[1736310527069,0.14193761,96469.0,96468.0,0.412638]
[1736310527271,0.49561,96469.0,96468.0,0.412638]
[1736310527470,0.5,96474.0,96473.0,0.051835]
[1736310527670,0.3608,96487.0,96468.0,0.3608]
[1736310527671,0.5,96477.0,96468.0,0.3608]
[1736310527973,0.48006323,96477.0,96476.0,0.412634]
[1736310528176,0.5,96477.0,96476.0,0.412634]
[1736310528676,0.5,96486.0,96476.0,0.412634]
[1736310528879,0.5,96486.0,96485.0,0.051829]
[1736310529689,0.47,96486.0,96485.0,0.051829]
[1736310530182,0.20153932,96486.0,96485.0,0.051829]
[1736310530572,0.3608,96510.0,96484.0,0.3608]
[1736310530784,0.3608,96510.0,96499.0,0.051821]
[1736310531584,0.00155457,96512.0,96511.0,0.051815]
[1736310531974,0.3608,96528.0,96518.0,0.051811]
[1736310532377,0.3608,96528.0,96519.0,0.05181]
[1736310532575,0.3608,96528.0,96517.0,0.3608]
[1736310532576,0.3608,96528.0,96523.0,0.051808]
[1736310534987,0.3638,96528.0,96523.0,0.051808]
[1736310537184,0.3708,96528.0,96523.0,0.052808]
[1736310537379,0.8708,96528.0,96523.0,0.001]
[1736310538385,0.3608,96526.0,96523.0,0.001]
[1736310539586,0.8608,96526.0,96523.0,0.001]
[1736310541887,0.8628,96526.0,96518.0,0.02386158]
[1736310542087,0.8628,96526.0,96517.0,0.051811]
[1736310542088,0.8628,96526.0,96523.0,0.001]
[1736310542487,0.8658,96526.0,96519.0,0.05181]
[1736310542782,0.8658,96526.0,96516.0,0.10337735]
[1736310542988,0.8658,96526.0,96524.0,0.051808]
[1736310543388,0.3658,96526.0,96524.0,0.051808]
[1736310544085,0.3658,96526.0,96525.0,0.1072]
[1736310544283,0.3658,96526.0,96525.0,0.10201921]
[1736310544488,0.005,96526.0,96525.0,0.10201921]
[1736310544993,0.002,96526.0,96525.0,0.10201921]
[1736310545188,0.005,96526.0,96525.0,0.10201921]
[1736310545493,0.003,96526.0,96525.0,0.10201921]
[1736310546796,0.50052001,96531.0,96530.0,0.051805]
[1736310546995,0.5,96531.0,96530.0,0.051805]
[1736310549995,0.3608,96532.0,96530.0,0.051805]
[1736310550294,0.3608,96532.0,96530.0,0.07382749]
[1736310550496,0.5,96531.0,96530.0,0.07382749]
[1736310551894,0.3618,96532.0,96530.0,0.07382749]
[1736310552580,0.5,96531.0,96530.0,0.07382749]
[1736310552984,0.3618,96532.0,96530.0,0.07382749]
[1736310553188,0.5,96531.0,96530.0,0.07382749]
[1736310554895,0.3608,96532.0,96530.0,0.07382749]
[1736310555288,0.3608,96532.0,96530.0,0.07482749]
[1736310555492,0.8608,96532.0,96530.0,0.07482749]
[1736310555991,0.8608,96532.0,96530.0,0.07382749]
[1736310556688,0.5,96532.0,96530.0,0.07382749]
[1736310556998,0.5,96531.0,96530.0,0.07382749]
[1736310557691,0.47,96531.0,96530.0,0.07382749]
[1736310557890,0.446,96531.0,96530.0,0.07482749]
[1736310558489,0.5,96537.0,96530.0,0.07482749]
[1736310558790,0.5,96537.0,96536.0,0.412601]
[1736310559189,0.5,96542.0,96536.0,0.5814]
[1736310559392,0.495,96542.0,96541.0,0.051799]
[1736310559699,0.4921,96542.0,96541.0,0.051799]
[1736310559898,0.5,96542.0,96541.0,0.051799]
[1736310560101,0.5,96548.0,96537.0,0.1053]
[1736310560292,0.471,96548.0,96547.0,0.051796]
[1736310560488,0.3608,96555.0,96540.0,0.10337735]
[1736310560800,0.3608,96555.0,96554.0,0.051792]
[1736310561987,0.2094,96558.0,96555.0,0.051791]
[1736310562793,0.2094,96558.0,96556.0,0.05179]
[1736310563002,0.1037,96558.0,96556.0,0.05179]
[1736310563501,0.3608,96564.0,96557.0,0.05179]
[1736310565004,0.3608,96564.0,96556.0,0.02126114]
[1736310565191,0.3608,96564.0,96554.0,0.10337735]
[1736310565386,0.3608,96555.0,96554.0,0.10337735]
[1736310565686,0.3608,96555.0,96545.0,0.46417735]
[1736310566289,0.1,96600.0,96599.0,0.051768]
[1736310566591,0.222,96642.0,96599.0,0.82568]
[1736310566793,0.222,96642.0,96618.0,0.7216]
[1736310567099,0.1115,96641.0,96632.0,0.10337735]
[1736310567600,0.1115,96641.0,96632.0,0.3608]
[1736310568100,0.1115,96641.0,96640.0,0.3608]
[1736310568994,0.6225,96641.0,96640.0,0.3608]
[1736310569396,0.1145,96641.0,96640.0,0.3608]
[1736310569589,0.6215,96641.0,96640.0,0.3618]
[1736310569991,0.1215,96641.0,96640.0,0.3618]
[1736310570307,0.6215,96641.0,96640.0,0.3618]
[1736310570605,0.1215,96641.0,96640.0,0.3618]
[1736310571002,0.01,96641.0,96640.0,0.3618]
[1736310571394,1e-06,96641.0,96640.0,0.3618]
[1736310572400,0.5,96655.0,96640.0,0.3618]
[1736310572593,0.5,96655.0,96654.0,0.412538]
[1736310573700,0.49402,96666.0,96665.0,0.051732]
[1736310573905,0.49402,96666.0,96665.0,0.412532]
[1736310574106,0.214,96685.0,96669.0,0.05173]
[1736310574301,0.214,96685.0,96684.0,0.3608]
[1736310574602,0.714,96685.0,96684.0,0.3608]
[1736310574810,0.214,96685.0,96675.0,0.10337735]
[1736310575301,0.217,96685.0,96676.0,0.3608]
[1736310575511,0.721,96685.0,96684.0,0.001]
[1736310575706,0.221,96685.0,96684.0,0.001]
[1736310576008,0.721,96685.0,96676.0,0.3608]
[1736310576211,0.3608,96682.0,96675.0,0.001]
[1736310576410,0.5,96681.0,96675.0,0.001]
[1736310576713,0.3608,96682.0,96675.0,0.001]
[1736310576911,0.5,96681.0,96675.0,0.001]
[1736310577212,0.3608,96682.0,96675.0,0.001]
[1736310577404,0.5,96681.0,96675.0,0.001]
[1736310577604,0.5,96681.0,96676.0,0.001]
[1736310577911,0.3608,96682.0,96656.0,0.3608]
[1736310578111,0.5,96681.0,96660.0,0.10337735]
[1736310578315,0.5,96672.0,96660.0,0.10337735]
[1736310578703,0.5,96671.0,96668.0,0.3608]
[1736310579010,0.006,96681.0,96668.0,0.3608]
[1736310579204,0.004,96681.0,96668.0,0.3608]
[1736310579408,0.5,96671.0,96668.0,0.3608]
[1736310581014,0.501,96671.0,96668.0,0.3608]
[1736310581704,0.001,96671.0,96668.0,0.3608]
[1736310581905,0.001,96671.0,96668.0,0.412531]
[1736310582113,0.3608,96682.0,96668.0,0.412531]
[1736310582415,0.5,96672.0,96668.0,0.412531]
[1736310583814,0.5,96672.0,96668.0,0.413531]
[1736310584312,0.503,96672.0,96670.0,0.3608]
[1736310584614,0.001,96671.0,96670.0,0.3608]
[1736310585005,0.001,96671.0,96670.0,0.41253]
[1736310585308,0.501,96672.0,96670.0,0.41253]
[1736310585502,0.004,96672.0,96670.0,0.41253]
[1736310585899,0.003,96672.0,96670.0,0.41253]
[1736310586103,0.001,96671.0,96670.0,0.41253]
[1736310587105,0.003,96671.0,96670.0,0.41253]
[1736310587812,0.002,96671.0,96670.0,0.41253]
[1736310588516,0.001,96671.0,96670.0,0.41253]
[1736310589416,0.002,96671.0,96670.0,0.41253]
[1736310590615,0.001,96671.0,96670.0,0.41253]
[1736310590816,0.002,96671.0,96670.0,0.41253]
[1736310591308,0.001,96671.0,96670.0,0.41353]
[1736310591811,0.09535452,96674.0,96670.0,0.3608]
[1736310592111,0.09535452,96674.0,96672.0,0.051728]
[1736310593720,0.08824952,96674.0,96673.0,0.3608]
[1736310594018,0.06457587,96674.0,96673.0,0.3608]
[1736310594216,0.03438805,96674.0,96673.0,0.3608]
[1736310594418,0.11142121,96695.0,96694.0,0.051717]
[1736310594614,0.11142121,96695.0,96694.0,0.412517]
[1736310595015,0.50052001,96696.0,96694.0,0.412517]
[1736310595215,0.5,96696.0,96694.0,0.412517]
[1736310596920,0.5,96696.0,96694.0,0.3608]
[1736310597113,0.22182121,96706.0,96685.0,0.3608]
[1736310597313,0.5,96696.0,96694.0,0.001]
[1736310597725,0.22182121,96706.0,96694.0,0.001]
[1736310597922,0.5,96696.0,96694.0,0.001]
[1736310598315,0.22182121,96706.0,96685.0,0.37795884]
[1736310598517,0.505,96696.0,96685.0,0.37795884]
[1736310598716,0.507,96696.0,96685.0,0.37795884]
[1736310598918,0.5,96690.0,96685.0,0.37795884]
[1736310599121,0.5,96686.0,96685.0,0.01715884]
[1736310599312,0.5,96686.0,96630.0,0.10337735]
[1736310599313,0.5,96686.0,96657.0,0.3608]
[1736310599515,0.3608,96673.0,96657.0,0.3608]
[1736310599710,0.1113,96672.0,96657.0,0.3608]
[1736310600112,0.6113,96672.0,96657.0,0.3608]
[1736310600541,0.5,96663.0,96657.0,0.3608]
[1736310600820,0.6029,96662.0,96657.0,0.3608]
[1736310601324,0.3608,96660.0,96657.0,0.009]
[1736310602025,0.8608,96660.0,96647.0,0.82504]
[1736310602422,0.5,96652.0,96647.0,0.82504]
[1736310602624,0.5,96650.0,96647.0,0.82504]
[1736310603018,0.09536714,96659.0,96647.0,0.84222301]
[1736310603223,0.5,96650.0,96647.0,0.84222301]
[1736310603622,0.59536714,96649.0,96647.0,0.84222301]
[1736310604019,0.09536714,96649.0,96647.0,0.84222301]
[1736310604332,0.59536714,96649.0,96647.0,0.84222301]
[1736310604518,0.59536714,96649.0,96647.0,0.84322301]
[1736310604725,0.5,96650.0,96648.0,0.051741]
[1736310605229,0.5,96649.0,96648.0,0.051741]
[1736310605621,0.09536714,96649.0,96647.0,0.84430301]
[1736310605818,0.09536714,96649.0,96648.0,0.051741]
[1736310606824,0.09536714,96651.0,96647.0,0.84434301]
[1736310607132,0.09536714,96651.0,96650.0,0.05174]
[1736310607327,0.04423862,96651.0,96650.0,0.41254]
[1736310607527,0.02731397,96651.0,96650.0,0.41254]
[1736310607930,0.5,96662.0,96654.0,0.051738]
[1736310608228,0.5,96670.0,96661.0,0.3608]
[1736310608631,0.219,96680.0,96661.0,0.3608]
[1736310608834,0.5,96670.0,96661.0,0.3608]
[1736310609137,0.001,96651.0,96650.0,0.47217735]
[1736310609332,0.001,96651.0,96650.0,0.42054]
[1736310610728,0.2207,96653.0,96652.0,0.051739]
[1736310611129,0.7207,96653.0,96652.0,0.051739]
[1736310611530,0.2207,96653.0,96652.0,0.051739]
[1736310612129,0.2207,96653.0,96652.0,0.054739]
[1736310612332,0.2207,96653.0,96652.0,0.056739]
[1736310612636,0.2207,96653.0,96652.0,0.005]
[1736310612637,0.7207,96653.0,96652.0,0.005]
[1736310613632,0.81607669,96653.0,96652.0,0.002]
[1736310613841,0.81607669,96653.0,96652.0,0.005]
[1736310614632,0.81607669,96653.0,96652.0,0.002]
[1736310614840,0.81607669,96653.0,96652.0,0.006]
[1736310616330,0.81607669,96653.0,96652.0,0.3668]
[1736310616531,0.81607669,96653.0,96652.0,0.006]
[1736310620643,0.81607669,96653.0,96652.0,0.005]
[1736310621434,0.81607669,96653.0,96628.0,0.3608]
[1736310621645,0.81607669,96653.0,96637.0,0.01710899]
[1736310622037,0.81607669,96653.0,96652.0,0.001]
[1736310622935,0.83212121,96653.0,96652.0,0.001]
[1736310623136,1.13212121,96653.0,96628.0,0.3608]
[1736310623444,0.3608,96645.0,96628.0,0.3608]
[1736310624045,0.3608,96637.0,96628.0,0.3608]
[1736310624442,0.3608,96637.0,96620.0,0.12550822]
[1736310624743,0.8608,96637.0,96633.0,0.01761786]
[1736310624939,0.3608,96637.0,96636.0,0.001]
[1736310625340,0.8608,96637.0,96636.0,0.001]
[1736310625544,0.3608,96637.0,96636.0,0.001]
[1736310625739,0.8618,96637.0,96620.0,0.10337735]
[1736310625934,0.8618,96637.0,96620.0,0.12078886]
[1736310626140,0.5,96634.0,96620.0,0.01741151]
[1736310626439,0.5,96627.0,96620.0,0.10337735]
[1736310626639,0.104,96626.0,96620.0,0.10337735]
[1736310626842,0.5,96623.0,96620.0,0.10337735]
[1736310627040,0.104,96626.0,96620.0,0.10337735]
[1736310627240,0.5,96623.0,96620.0,0.10337735]
[1736310627446,0.5,96623.0,96618.0,0.051757]
[1736310627647,0.19940779,96626.0,96618.0,0.06939008]
[1736310627847,0.5,96623.0,96620.0,0.009]
[1736310628039,0.09540779,96622.0,96620.0,0.009]
[1736310628241,0.3608,96621.0,96620.0,0.009]
[1736310629149,0.8608,96621.0,96620.0,0.009]
[1736310629540,0.3608,96621.0,96620.0,0.009]
[1736310629742,0.8608,96621.0,96620.0,0.009]
[1736310630049,0.001,96623.0,96620.0,0.009]
[1736310630435,0.11142121,96621.0,96620.0,0.009]
[1736310630638,0.11242121,96621.0,96620.0,0.009]
[1736310630847,0.11242121,96621.0,96619.0,0.412557]
[1736310631539,0.11242121,96621.0,96619.0,0.17976078]
[1736310631741,0.11242121,96621.0,96619.0,0.12800378]
[1736310631942,0.11142121,96620.0,96618.0,0.02663308]
[1736310632843,0.11142121,96619.0,96618.0,0.02663308]
[1736310633143,0.11142121,96619.0,96618.0,0.01763308]
[1736310633344,0.11142121,96619.0,96615.0,0.051759]
[1736310633544,0.5,96617.0,96615.0,0.06947294]
[1736310634048,0.11142121,96618.0,96615.0,0.06947294]
[1736310634841,0.501,96617.0,96615.0,0.07847294]
[1736310635145,0.61342121,96617.0,96615.0,0.07847294]
[1736310635348,0.3608,96616.0,96615.0,0.02671394]
[1736310635649,0.473,96616.0,96615.0,0.02671394]
[1736310636236,0.973,96616.0,96615.0,0.009]
[1736310636441,1.0759,96616.0,96615.0,0.009]
[1736310636750,1.0759,96616.0,96611.0,0.01757225]
[1736310636939,0.3608,96614.0,96601.0,0.00155268]
[1736310637143,0.3608,96602.0,96601.0,0.00155268]
[1736310637451,0.5,96592.0,96590.0,0.10337735]
[1736310637640,0.5,96592.0,96590.0,0.051772]
[1736310638055,0.5,96592.0,96588.0,0.42255329]
[1736310638248,0.8608,96592.0,96588.0,0.42255329]
[1736310638557,0.1062,96591.0,96588.0,0.42255329]
[1736310639254,0.6062,96591.0,96588.0,0.42255329]
[1736310639552,0.1062,96591.0,96588.0,0.42255329]
[1736310639852,0.6062,96591.0,96590.0,0.002]
[1736310640039,0.1062,96591.0,96590.0,0.002]
[1736310640353,0.6062,96591.0,96590.0,0.002]
[1736310640551,0.6062,96591.0,96588.0,0.42255329]
[1736310640853,0.6062,96591.0,96588.0,0.42455329]
[1736310640854,0.1072,96591.0,96588.0,0.42455329]
[1736310641053,0.6072,96591.0,96588.0,0.42455329]
[1736310641351,0.1072,96591.0,96588.0,0.42455329]
[1736310641546,0.6072,96591.0,96588.0,0.42455329]
[1736310641754,0.6082,96591.0,96588.0,0.42455329]
[1736310642053,0.1082,96591.0,96588.0,0.42455329]
[1736310642353,0.6082,96591.0,96588.0,0.42455329]
[1736310642552,0.1082,96591.0,96588.0,0.42455329]
[1736310642748,0.6082,96591.0,96588.0,0.42455329]
[1736310642956,0.6072,96591.0,96588.0,0.42255329]
[1736310643157,0.6082,96591.0,96588.0,0.42255329]
[1736310645743,0.002,96591.0,96589.0,0.051773]
[1736310646843,0.001,96591.0,96589.0,0.051773]
[1736310647042,0.002,96591.0,96589.0,0.054773]
[1736310648256,0.002,96591.0,96589.0,0.003]
[1736310648461,0.1052,96590.0,96589.0,0.003]
[1736310648756,0.2078,96590.0,96589.0,0.003]
[1736310649257,0.7078,96590.0,96589.0,0.003]
[1736310649458,0.2078,96590.0,96589.0,0.003]
[1736310649654,1.0696,96590.0,96589.0,0.003]
[1736310650059,0.5696,96590.0,96589.0,0.003]
[1736310650257,1.0696,96590.0,96589.0,0.003]
[1736310650658,1.0706,96590.0,96589.0,0.003]
[1736310650956,1.0706,96590.0,96570.0,0.00155283]
[1736310651151,0.3608,96571.0,96570.0,0.00155283]
[1736310651353,0.3608,96571.0,96570.0,0.01932602]
[1736310651553,0.3608,96571.0,96570.0,0.00155283]
[1736310651755,0.8608,96571.0,96570.0,0.00155283]
[1736310652255,0.3608,96571.0,96570.0,0.00155283]
[1736310652654,0.8608,96571.0,96570.0,0.00155283]
[1736310652959,0.3618,96571.0,96570.0,0.00455283]
[1736310653557,0.8618,96571.0,96570.0,0.00455283]
[1736310653958,0.3618,96571.0,96570.0,0.00455283]
[1736310654458,0.8628,96571.0,96570.0,0.00455283]
[1736310654858,0.3628,96571.0,96570.0,0.00455283]
[1736310655362,0.3618,96571.0,96570.0,0.00155283]
[1736310655561,0.501,96571.0,96570.0,0.05333583]
[1736310655865,0.5,96579.0,96578.0,0.051779]
[1736310656156,0.5,96579.0,96578.0,0.412579]
[1736310656858,0.5,96580.0,96578.0,0.051779]
[1736310657056,0.001,96579.0,96571.0,0.051782]
[1736310657256,0.001,96579.0,96570.0,0.00155283]
[1736310657662,0.5,96571.0,96570.0,0.00155283]
[1736310658564,0.8608,96571.0,96570.0,0.00155283]
[1736310660362,0.8618,96571.0,96570.0,0.00255283]
[1736310660967,0.3618,96571.0,96570.0,0.00255283]
[1736310661565,0.8618,96571.0,96570.0,0.00255283]
[1736310661766,0.3618,96571.0,96570.0,0.00255283]
[1736310662568,0.8618,96571.0,96570.0,0.00255283]
[1736310662770,0.3618,96571.0,96570.0,0.00255283]
[1736310663066,0.8618,96571.0,96570.0,0.00255283]
[1736310665867,0.3618,96571.0,96570.0,0.00255283]
[1736310666068,0.001,96571.0,96570.0,0.36335283]
[1736310666270,0.001,96571.0,96570.0,0.00255283]
[1736310666469,0.501,96571.0,96570.0,0.00255283]
[1736310666670,0.001,96571.0,96570.0,0.00255283]
[1736310666876,0.501,96571.0,96570.0,0.00255283]
[1736310667178,0.001,96571.0,96563.0,0.48284606]
[1736310667476,0.3608,96564.0,96563.0,0.01716606]
[1736310667676,0.3608,96564.0,96556.0,0.051791]
[1736310668087,0.8608,96564.0,96556.0,0.051791]
[1736310668572,0.5,96560.0,96550.0,0.10337735]
[1736310668770,0.5,96554.0,96550.0,0.11802764]
[1736310668965,0.3608,96556.0,96550.0,0.01465029]
[1736310669180,0.3608,96556.0,96549.0,0.051794]
[1736310669476,0.3608,96556.0,96544.0,0.32397735]
[1736310669477,0.5,96554.0,96544.0,0.32397735]
[1736310669677,0.5,96546.0,96544.0,0.10337735]
[1736310669879,0.3608,96556.0,96545.0,0.051797]
[1736310670076,0.3608,96556.0,96546.0,0.051796]
[1736310670276,0.8608,96556.0,96549.0,0.051794]
[1736310670466,0.1023,96555.0,96553.0,0.051792]
[1736310671074,0.36240001,96556.0,96555.0,0.051791]
[1736310671287,0.3608,96556.0,96555.0,0.051791]
[1736310671577,0.3618,96556.0,96555.0,0.051791]
[1736310672173,0.1023,96569.0,96568.0,0.051784]
[1736310672174,0.48978651,96569.0,96568.0,0.051784]
[1736310672778,0.1011,96570.0,96568.0,0.051784]
[1736310673669,0.6011,96570.0,96563.0,0.3608]
[1736310673875,0.3608,96564.0,96562.0,0.051787]
[1736310674280,0.3608,96564.0,96562.0,0.01475187]
[1736310674473,0.8608,96564.0,96555.0,0.413591]
[1736310674674,0.8608,96564.0,96555.0,0.3608]
[1736310674981,0.5,96560.0,96556.0,0.05179]
[1736310675180,0.3618,96564.0,96557.0,0.05179]
[1736310675376,0.8618,96564.0,96562.0,0.001]
[1736310675772,0.3618,96564.0,96562.0,0.001]
[1736310675973,0.8618,96564.0,96562.0,0.001]
[1736310676171,0.8618,96564.0,96557.0,0.05179]
[1736310676376,0.5,96560.0,96557.0,0.05279]
[1736310676577,0.3618,96564.0,96557.0,0.05279]
[1736310676776,0.3628,96564.0,96557.0,0.05279]
[1736310676982,0.8628,96564.0,96557.0,0.05279]
[1736310677179,0.8618,96564.0,96557.0,0.05279]
[1736310677384,0.8628,96564.0,96557.0,0.04910306]
[1736310677684,0.8618,96564.0,96558.0,0.051789]
[1736310677885,0.8618,96564.0,96562.0,0.001]
[1736310678685,0.8628,96564.0,96558.0,0.051789]
[1736310679381,0.8618,96564.0,96562.0,0.001]
[1736310680275,0.8618,96564.0,96562.0,0.052787]
[1736310680986,0.8628,96564.0,96562.0,0.052787]
[1736310681777,0.8618,96564.0,96562.0,0.053787]
[1736310683179,0.1115355,96563.0,96562.0,0.002]
[1736310683787,0.6115355,96563.0,96541.0,0.051798]
[1736310684087,0.8608,96554.0,96538.0,0.3608]
[1736310684281,0.8608,96554.0,96534.0,0.46476]
[1736310684282,0.1031,96553.0,96547.0,0.28741985]
[1736310684480,0.6031,96553.0,96547.0,0.28741985]
[1736310684784,0.1031,96553.0,96547.0,0.28741985]
[1736310684977,0.6031,96553.0,96547.0,0.28741985]
[1736310685177,0.1031,96553.0,96547.0,0.28741985]
[1736310685378,0.1031,96553.0,96547.0,0.28841985]
[1736310685379,0.1115355,96552.0,96547.0,0.28841985]
[1736310686077,0.6115355,96552.0,96547.0,0.28841985]
[1736310686484,0.1115355,96551.0,96547.0,0.28841985]
[1736310687079,0.1115355,96551.0,96547.0,0.28741985]
[1736310687382,0.1115355,96550.0,96549.0,0.051794]
[1736310688687,0.08874108,96550.0,96549.0,0.051794]
[1736310689884,0.08974108,96550.0,96549.0,0.051794]
[1736310690485,0.002,96550.0,96549.0,0.051794]
[1736310692879,0.3608,96563.0,96552.0,0.051793]
[1736310693078,0.5,96564.0,96562.0,0.051788]
[1736310693287,0.3608,96582.0,96573.0,0.051782]
[1736310694787,0.6031,96581.0,96573.0,0.051782]
[1736310694982,0.1031,96581.0,96573.0,0.051782]
[1736310695385,0.6031,96581.0,96573.0,0.051782]
[1736310695590,0.6031,96581.0,96567.0,0.3608]
[1736310695790,0.1031,96581.0,96580.0,0.051778]
[1736310696490,0.5,96583.0,96576.0,0.3608]
[1736310696686,0.3608,96593.0,96592.0,0.051771]
[1736310696891,0.1031,96601.0,96598.0,0.051768]
[1736310697189,0.1031,96601.0,96599.0,0.051767]
[1736310697585,0.6031,96601.0,96599.0,0.051767]
[1736310697984,0.1031,96601.0,96591.0,0.15514835]
[1736310698190,0.6041,96601.0,96593.0,0.051771]
[1736310698396,0.6041,96601.0,96591.0,0.10337735]
[1736310698698,0.5,96592.0,96591.0,0.17024661]
[1736310698991,0.1041,96601.0,96598.0,0.051768]
[1736310699193,0.6041,96601.0,96600.0,0.051767]
[1736310699494,0.1051,96601.0,96600.0,0.051767]
[1736310699696,0.6051,96601.0,96600.0,0.051767]
[1736310699886,0.6041,96601.0,96600.0,0.051767]
[1736310700088,0.1041,96601.0,96591.0,0.10737735]
[1736310700290,0.1041,96601.0,96595.0,0.05177]
[1736310700687,0.1031,96601.0,96595.0,0.05177]
[1736310701481,0.1041,96601.0,96595.0,0.05177]
[1736310702196,0.1041,96601.0,96600.0,0.001]
[1736310702590,0.1041,96601.0,96595.0,0.05177]
[1736310704185,0.1031,96601.0,96595.0,0.05177]
[1736310704387,0.3608,96600.0,96595.0,0.05177]
[1736310704697,0.3608,96600.0,96591.0,0.11858231]
[1736310704889,0.5,96592.0,96591.0,0.11858231]
[1736310705089,0.5,96592.0,96591.0,0.01520496]
[1736310705289,0.5,96592.0,96589.0,0.051773]
[1736310705890,0.3608,96591.0,96582.0,0.10337735]
[1736310706091,0.5,96590.0,96582.0,0.10337735]
[1736310706901,0.5,96590.0,96589.0,0.004]
[1736310707405,0.4726,96591.0,96589.0,0.004]
[1736310707614,0.8608,96590.0,96589.0,0.004]
[1736310707900,0.3608,96590.0,96589.0,0.004]
[1736310708197,0.8608,96590.0,96589.0,0.004]
[1736310708402,0.8608,96590.0,96582.0,0.11821541]
[1736310708702,0.3608,96590.0,96582.0,0.11821541]
[1736310709003,0.8618,96590.0,96582.0,0.12221541]
[1736310709305,0.3618,96590.0,96582.0,0.12221541]
[1736310709603,0.8618,96590.0,96582.0,0.11821541]
[1736310710006,0.3618,96590.0,96582.0,0.11821541]
[1736310710188,0.8618,96590.0,96582.0,0.11821541]
[1736310710392,0.8628,96590.0,96582.0,0.11821541]
[1736310710595,0.8618,96590.0,96582.0,0.11821541]
[1736310710792,0.8628,96590.0,96582.0,0.11821541]
[1736310711192,0.8618,96590.0,96582.0,0.11821541]
[1736310711398,0.8628,96590.0,96582.0,0.11821541]
[1736310712208,0.8618,96590.0,96582.0,0.11821541]
[1736310712503,0.3608,96583.0,96582.0,0.11821541]
[1736310712702,0.3608,96583.0,96582.0,0.01483806]
[1736310713003,0.503,96590.0,96582.0,0.051777]
[1736310713004,0.003,96590.0,96582.0,0.051777]
[1736310713795,0.5,96584.0,96582.0,0.051777]
[1736310713995,0.001,96590.0,96582.0,0.051777]
[1736310714195,0.3608,96585.0,96582.0,0.052777]
[1736310714700,0.1163,96589.0,96582.0,0.052777]
[1736310714902,0.001,96584.0,96582.0,0.052777]
[1736310715200,0.501,96584.0,96582.0,0.052777]
[1736310716700,0.501,96584.0,96582.0,0.051777]
[1736310717503,0.502,96584.0,96582.0,0.052777]
[1736310718406,0.002,96584.0,96582.0,0.052777]
[1736310718906,0.001,96584.0,96582.0,0.052777]
[1736310719605,0.002,96584.0,96582.0,0.052777]
[1736310719994,0.001,96584.0,96582.0,0.052777]
[1736310720205,0.1163,96589.0,96582.0,0.051777]
[1736310720817,0.001,96584.0,96582.0,0.051777]
[1736310722122,0.1163,96589.0,96582.0,0.051777]
[1736310722920,0.1173,96589.0,96582.0,0.051777]
[1736310723320,0.5,96584.0,96582.0,0.051777]
[1736310723521,0.3608,96585.0,96582.0,0.051777]
[1736310723710,0.3608,96585.0,96580.0,0.01612327]
[1736310724120,0.3608,96581.0,96580.0,0.01612327]
[1736310724325,0.3608,96581.0,96571.0,0.46476]
[1736310724526,0.3608,96572.0,96571.0,0.46476]
[1736310724911,0.8608,96572.0,96571.0,0.46476]
[1736310725117,0.8608,96572.0,96571.0,0.48816462]
[1736310725321,0.3608,96572.0,96571.0,0.48816462]
[1736310725523,0.8608,96572.0,96571.0,0.48816462]
[1736310725915,0.3608,96572.0,96571.0,0.48816462]
[1736310726122,0.8608,96572.0,96571.0,0.48816462]
[1736310726426,0.3608,96572.0,96571.0,0.48816462]
[1736310726928,0.8608,96572.0,96571.0,0.48816462]
[1736310727132,0.3608,96572.0,96571.0,0.48816462]